bitfinex/quotes_SOLUSD_20220129
["timestamp","ask_amount","ask_price","bid_price","bid_amount"]
[1643457751913,0.25,96.611,96.56,14.96]
[1643457752111,0.25,96.611,96.552,1.35350217]
[1643457752312,2.95669142,96.61,96.552,1.35350217]
[1643457752611,6.0,96.601,96.553,0.25]
[1643457752810,24.8868,96.611,96.553,0.25]
[1643457753012,6.0,96.601,96.553,46.06337631]
[1643457753613,6.0,96.596,96.552,1.35350217]
[1643457754417,5.5937552,96.606,96.553,0.25]
[1643457754613,21.18826772,96.588,96.553,0.25]
[1643457755213,6.0,96.596,96.553,0.25]
[1643457755414,6.0,96.6,96.553,0.25]
[1643457755813,6.0,96.6,96.552,1.35350217]
[1643457757119,19.38668465,96.599,96.552,1.35350217]
[1643457757317,19.63668465,96.599,96.552,1.35350217]
[1643457757519,6.0,96.589,96.552,1.35350217]
[1643457757817,0.25,96.588,96.552,1.35350217]
[1643457758817,6.0,96.589,96.55,14.96]
[1643457759018,6.0,96.589,96.551,0.25]
[1643457759217,6.0,96.589,96.55,14.96]
[1643457759420,6.0,96.589,96.551,0.25]
[1643457759918,6.0,96.589,96.55,14.96]
[1643457760121,6.0,96.589,96.551,0.25]
[1643457760919,24.8868,96.611,96.551,0.25]
[1643457761121,6.0,96.601,96.551,0.25]
[1643457765022,6.0,96.601,96.551,103.95]
[1643457765222,15.532,96.65,96.551,0.25]
[1643457765622,15.532,96.65,96.56,21.529]
[1643457765822,15.532,96.65,96.57,14.96]
[1643457766025,6.0,96.623,96.57,14.96]
[1643457766224,6.0,96.623,96.571,33.5229084]
[1643457766425,24.80644366,96.646,96.571,33.5229084]
[1643457766824,0.25,96.632,96.571,33.5229084]
[1643457767024,0.25,96.632,96.572,103.7]
[1643457767425,0.25,96.632,96.573,0.25]
[1643457767625,23.2289,96.659,96.573,0.25]
[1643457767826,23.2289,96.659,96.582,6.0]
[1643457768027,23.2289,96.659,96.59,20.96]
[1643457768426,21.0125709,96.659,96.594,103.7]
[1643457768726,21.0125709,96.659,96.604,6.0]
[1643457769125,21.0125709,96.659,96.61,6.0]
[1643457769327,21.0125709,96.659,96.611,40.52402311]
[1643457770727,21.0125709,96.659,96.611,40.27402311]
[1643457770927,21.0125709,96.659,96.612,0.25]
[1643457772232,21.0125709,96.659,96.61,14.96]
[1643457772432,0.25,96.658,96.61,14.96]
[1643457772929,6.0,96.649,96.61,14.96]
[1643457773330,0.72709438,96.648,96.61,14.96]
[1643457773731,0.47709438,96.648,96.61,14.96]
[1643457775335,0.72709438,96.648,96.61,14.96]
[1643457775936,0.47709438,96.648,96.61,14.96]
[1643457776136,0.47709438,96.648,96.611,0.25]
[1643457777343,0.47709438,96.648,96.581,0.25]
[1643457777540,0.47709438,96.648,96.59,6.0]
[1643457777940,0.47709438,96.648,96.591,42.25570795]
[1643457779043,0.47709438,96.648,96.591,0.25]
[1643457779240,0.72709438,96.648,96.581,0.25]
[1643457780142,24.4398,96.647,96.581,0.25]
[1643457780343,0.25,96.646,96.567,37.64483677]
[1643457780551,6.0,96.637,96.567,37.64483677]
[1643457780945,24.4398,96.647,96.571,103.7]
[1643457781148,6.0,96.637,96.57,14.96]
[1643457781345,6.0,96.637,96.572,2.87369161]
[1643457781545,6.0,96.627,96.572,2.87369161]
[1643457781750,6.0,96.627,96.573,0.25]
[1643457781946,22.4995052,96.633,96.57,14.96]
[1643457782147,4.28251772,96.616,96.573,0.25]
[1643457782548,6.0,96.606,96.573,0.25]
[1643457783167,6.0,96.66,96.577,6.0]
[1643457783368,0.25,96.659,96.578,0.25]
[1643457783768,20.64879312,96.659,96.578,0.25]
[1643457784171,6.0,96.649,96.578,0.25]
[1643457785771,0.25,96.648,96.578,0.25]
[1643457786172,6.0,96.649,96.578,0.25]
[1643457786370,0.25,96.648,96.578,0.25]
[1643457787572,0.25,96.648,96.582,39.52353059]
[1643457787776,6.0,96.649,96.583,0.25]
[1643457787973,0.25,96.648,96.583,0.25]
[1643457788172,6.0,96.649,96.592,6.0]
[1643457788377,6.0,96.649,96.593,0.25]
[1643457788773,0.25,96.648,96.593,0.25]
[1643457788976,0.25,96.648,96.582,39.52353059]
[1643457789274,0.25,96.648,96.583,0.25]
[1643457789573,0.25,96.648,96.582,39.52353059]
[1643457789574,6.0,96.649,96.582,39.52353059]
[1643457790073,0.25,96.648,96.582,39.52353059]
[1643457790975,0.25,96.648,96.583,0.25]
[1643457791775,24.7152,96.648,96.583,0.25]
[1643457791975,6.0,96.638,96.583,0.25]
[1643457792275,12.3832298,96.638,96.583,0.25]
[1643457793075,6.0,96.638,96.583,0.25]
[1643457794480,6.0,96.629,96.583,0.25]
[1643457795079,6.0,96.638,96.583,0.25]
[1643457796082,6.0,96.631,96.583,0.25]
[1643457796484,24.4652,96.648,96.583,0.25]
[1643457796682,6.0,96.638,96.583,0.25]
[1643457797683,6.0,96.638,96.582,39.52353059]
[1643457799086,6.0,96.638,96.583,0.25]
[1643457804492,6.0,96.638,96.584,1.35305373]
[1643457804890,0.25,96.637,96.584,1.35305373]
[1643457805290,23.9032,96.637,96.584,1.35305373]
[1643457805693,6.0,96.627,96.584,1.35305373]
[1643457805893,6.87890928,96.626,96.585,45.20734603]
[1643457806090,6.87890928,96.626,96.56,30.346]
[1643457806292,24.3712,96.625,96.56,30.346]
[1643457807092,6.0,96.615,96.561,43.35254433]
[1643457807792,6.0,96.615,96.562,0.25]
[1643457808396,6.0,96.615,96.562,103.95]
[1643457808594,6.0,96.615,96.572,6.0]
[1643457808794,24.3712,96.625,96.573,0.25]
[1643457808994,6.0,96.615,96.573,0.25]
[1643457809595,24.3712,96.625,96.573,0.25]
[1643457809996,24.3712,96.625,96.571,6.0]
[1643457809997,24.3712,96.625,96.572,0.25]
[1643457810501,24.3712,96.625,96.581,34.6559477]
[1643457810898,24.3712,96.625,96.582,0.25]
[1643457813098,6.0,96.615,96.58,14.96]
[1643457813297,0.25,96.614,96.56,14.96]
[1643457813501,0.25,96.614,96.561,0.25]
[1643457813897,6.0,96.615,96.561,0.25]
[1643457814097,6.0,96.615,96.561,40.62369739]
[1643457814497,24.3712,96.625,96.561,40.62369739]
[1643457814897,15.532,96.65,96.571,6.0]
[1643457815098,6.0,96.64,96.572,24.2854]
[1643457815297,6.0,96.64,96.573,103.7]
[1643457815497,6.0,96.654,96.583,6.0]
[1643457815700,6.0,96.654,96.59,14.96]
[1643457815900,6.0,96.658,96.59,14.96]
[1643457816102,22.659,96.657,96.572,0.25]
[1643457816299,6.0,96.647,96.58,14.96]
[1643457816825,35.83845782,96.646,96.58,14.96]
[1643457817027,6.0,96.636,96.58,14.96]
[1643457817426,0.25,96.635,96.58,14.96]
[1643457817829,6.0,96.636,96.58,14.96]
[1643457818230,0.25,96.635,96.581,0.25]
[1643457820531,0.25,96.635,96.59,6.0]
[1643457820731,0.25,96.635,96.591,42.39359741]
[1643457820932,6.0,96.636,96.591,42.64359741]
[1643457821333,6.0,96.636,96.591,0.25]
[1643457822833,0.25,96.635,96.591,0.25]
[1643457824033,6.0,96.636,96.591,0.25]
[1643457826046,6.0,96.636,96.57,14.96]
[1643457826249,0.25,96.635,96.571,1.35323587]
[1643457826847,6.0,96.626,96.571,1.35323587]
[1643457827247,0.25,96.625,96.572,0.25]
[1643457828250,6.0,96.64,96.572,0.25]
[1643457828251,23.8745,96.639,96.572,0.25]
[1643457828649,6.0,96.629,96.572,0.25]
[1643457828853,0.25,96.628,96.572,0.25]
[1643457829053,0.25,96.628,96.571,1.35323587]
[1643457829254,0.25,96.628,96.572,0.25]
[1643457829852,0.25,96.628,96.572,43.19704444]
[1643457830056,24.9795,96.628,96.572,43.19704444]
[1643457830454,6.0,96.618,96.572,43.19704444]
[1643457831057,24.9795,96.628,96.572,43.19704444]
[1643457831258,24.7295,96.628,96.572,43.19704444]
[1643457831858,6.0,96.618,96.572,43.19704444]
[1643457832457,6.0,96.618,96.572,0.25]
[1643457833262,24.7295,96.628,96.572,0.25]
[1643457833762,6.0,96.618,96.572,0.25]
[1643457834562,6.0,96.618,96.572,46.69676981]
[1643457834762,0.25,96.617,96.572,46.69676981]
[1643457834963,24.7295,96.628,96.572,46.69676981]
[1643457835980,24.7295,96.628,96.58,14.96]
[1643457836382,24.7295,96.628,96.581,0.25]
[1643457836582,24.7295,96.628,96.581,103.95]
[1643457837479,24.7295,96.628,96.581,0.25]
[1643457844691,113.18761906,96.67,96.581,0.25]
[1643457844890,6.25,96.659,96.591,147.89781055]
[1643457845092,6.0,96.658,96.601,6.0]
[1643457845291,0.25,96.657,96.602,103.95]
[1643457845490,0.25,96.657,96.612,6.0]
[1643457845690,0.25,96.657,96.613,46.45995627]
[1643457845890,0.25,96.657,96.614,0.25]
[1643457846990,6.0,96.658,96.614,0.25]
[1643457850494,0.25,96.657,96.614,0.25]
[1643457851094,6.0,96.658,96.614,0.25]
[1643457852296,0.25,96.657,96.614,0.25]
[1643457853097,0.25,96.657,96.613,46.45995627]
[1643457854098,6.0,96.658,96.613,46.45995627]
[1643457854301,0.25,96.657,96.613,46.45995627]
[1643457856001,6.0,96.658,96.613,46.45995627]
[1643457856199,0.25,96.657,96.613,46.45995627]
[1643457857201,6.0,96.658,96.614,0.25]
[1643457857901,0.25,96.657,96.613,46.45995627]
[1643457859505,0.25,96.657,96.614,0.25]
[1643457860003,0.25,96.657,96.613,46.45995627]
[1643457861004,6.0,96.656,96.613,46.45995627]
[1643457861407,0.25,96.655,96.58,14.96]
[1643457861604,6.0,96.654,96.58,14.96]
[1643457861804,0.25,96.653,96.58,14.96]
[1643457862107,6.0,96.647,96.58,14.96]
[1643457862303,0.25,96.646,96.581,0.25]
[1643457862505,0.25,96.646,96.581,44.70938886]
[1643457862905,25.2479,96.646,96.581,44.70938886]
[1643457865209,6.0,96.636,96.581,44.70938886]
[1643457865410,0.25,96.635,96.581,44.70938886]
[1643457866408,6.0,96.636,96.581,44.70938886]
[1643457867315,6.0,96.636,96.582,103.7]
[1643457867714,6.0,96.636,96.583,0.25]
[1643457868111,6.0,96.636,96.592,6.0]
[1643457868309,6.0,96.636,96.593,0.25]
[1643457868509,6.0,96.636,96.583,0.25]
[1643457868709,6.0,96.636,96.592,0.25]
[1643457868910,6.0,96.636,96.583,0.25]
[1643457869334,6.0,96.636,96.582,0.25]
[1643457869535,6.0,96.636,96.581,44.45938886]
[1643457870435,24.9979,96.646,96.581,44.45938886]
[1643457870636,24.9979,96.646,96.591,6.0]
[1643457870836,24.9979,96.646,96.592,0.25]
[1643457871236,6.0,96.636,96.592,0.25]
[1643457871635,0.25,96.635,96.581,44.45938886]
[1643457872039,22.9204,96.635,96.581,44.45938886]
[1643457872442,6.0,96.625,96.581,44.45938886]
[1643457873239,6.0,96.625,96.582,0.25]
[1643457873840,22.6704,96.635,96.582,0.25]
[1643457874241,0.25,96.634,96.582,0.25]
[1643457877746,1.43605127,96.651,96.582,103.95]
[1643457877945,1.43605127,96.652,96.592,103.7]
[1643457878151,26.71967033,96.67,96.592,109.7]
[1643457878348,25.28361906,96.67,96.601,42.81836753]
[1643457878746,2.95669142,96.669,96.583,1.43777669]
[1643457878947,1.43605127,96.664,96.575,1.43777669]
[1643457879147,6.0,96.659,96.571,1.43777669]
[1643457879349,6.0,96.654,96.571,1.43777669]
[1643457879547,6.0,96.65,96.571,1.43777669]
[1643457879848,29.5009,96.649,96.572,42.60997395]
[1643457880053,6.0,96.647,96.572,42.60997395]
[1643457880247,0.25,96.646,96.572,42.60997395]
[1643457880447,6.0,96.639,96.572,42.60997395]
[1643457880947,0.25,96.638,96.572,42.60997395]
[1643457881149,0.25,96.638,96.573,0.25]
[1643457881354,23.4868,96.638,96.573,0.25]
[1643457881549,6.0,96.628,96.573,0.25]
[1643457881750,23.4087,96.627,96.573,0.25]
[1643457883958,0.25,96.627,96.573,0.25]
[1643457884556,6.0,96.639,96.573,0.25]
[1643457885358,0.25,96.638,96.573,0.25]
[1643457885757,24.9167,96.638,96.573,0.25]
[1643457885960,6.0,96.645,96.573,0.25]
[1643457886159,6.0,96.628,96.578,1.43777669]
[1643457886358,6.0,96.628,96.579,0.25]
[1643457886759,1.43605127,96.656,96.579,0.25]
[1643457886760,6.0,96.65,96.579,0.25]
[1643457886959,6.0,96.646,96.579,0.25]
[1643457887461,6.0,96.646,96.574,0.25]
[1643457887663,0.25,96.645,96.574,0.25]
[1643457888562,6.25,96.645,96.574,0.25]
[1643457888761,0.25,96.645,96.574,0.25]
[1643457888960,6.0,96.635,96.574,0.25]
[1643457889365,6.0,96.635,96.575,1.43777669]
[1643457889560,6.0,96.644,96.575,1.43777669]
[1643457889761,6.0,96.647,96.576,0.25]
[1643457889962,6.0,96.647,96.573,129.25917669]
[1643457890165,6.0,96.644,96.574,0.25]
[1643457890563,0.25,96.643,96.574,0.25]
[1643457890761,0.25,96.644,96.574,0.25]
[1643457891363,2.95669142,96.643,96.573,1.43777669]
[1643457891662,2.95669142,96.643,96.51,51.774]
[1643457891663,6.0,96.633,96.564,1.43777669]
[1643457891862,23.7989,96.632,96.564,1.43777669]
[1643457892062,6.0,96.622,96.563,2.79112467]
[1643457892264,0.25,96.621,96.563,1.35334798]
[1643457892462,0.25,96.621,96.564,44.74302898]
[1643457892665,25.1716,96.621,96.565,1.35331995]
[1643457892864,31.1716,96.621,96.565,1.35331995]
[1643457893163,6.0,96.611,96.565,1.35331995]
[1643457893464,0.25,96.61,96.565,1.35331995]
[1643457893863,24.7827,96.61,96.565,1.35331995]
[1643457894064,6.0,96.6,96.565,1.35331995]
[1643457894273,0.25,96.599,96.565,1.35331995]
[1643457896191,22.7939,96.599,96.566,42.54231007]
[1643457896393,22.5439,96.599,96.567,1.35329193]
[1643457896691,22.5439,96.599,96.567,1.60329193]
[1643457896890,15.533,96.64,96.568,1.35327791]
[1643457897092,6.0,96.63,96.568,1.35327791]
[1643457897291,0.25,96.629,96.569,0.25]
[1643457897491,6.25,96.629,96.569,0.25]
[1643457897691,6.25,96.629,96.568,1.35327791]
[1643457897896,6.25,96.629,96.569,0.25]
[1643457898094,22.5412,96.628,96.569,0.25]
[1643457898294,0.25,96.627,96.569,0.25]
[1643457898496,6.0,96.618,96.569,0.25]
[1643457898795,0.25,96.617,96.569,0.25]
[1643457899194,0.25,96.617,96.568,1.35327791]
[1643457899395,22.91,96.617,96.568,1.35327791]
[1643457899596,6.0,96.607,96.568,1.35327791]
[1643457899997,22.66,96.617,96.568,1.35327791]
[1643457900398,0.25,96.616,96.568,1.35327791]
[1643457900599,6.0,96.607,96.568,1.35327791]
[1643457900896,0.25,96.606,96.568,1.35327791]
[1643457901497,15.534,96.63,96.569,0.25]
[1643457901696,22.5257,96.629,96.569,0.25]
[1643457902295,6.0,96.619,96.569,0.25]
[1643457902901,0.25,96.618,96.569,0.25]
[1643457903297,0.25,96.631,96.569,0.25]
[1643457903795,24.2063,96.631,96.569,0.25]
[1643457903997,6.0,96.621,96.569,0.25]
[1643457904197,23.9563,96.62,96.569,0.25]
[1643457904397,15.532,96.65,96.569,0.25]
[1643457904697,13.7763215,96.676,96.569,0.25]
[1643457904698,1.43605127,96.663,96.581,40.0269411]
[1643457904897,1.43605127,96.663,96.582,26.39318175]
[1643457905097,1.43605127,96.663,96.592,6.0]
[1643457905297,1.43605127,96.665,96.6,14.96]
[1643457905497,6.0,96.655,96.601,46.24250068]
[1643457905702,6.0,96.655,96.602,1.35280161]
[1643457905903,6.0,96.657,96.602,1.35280161]
[1643457906299,6.0,96.657,96.603,0.25]
[1643457906699,24.5581,96.667,96.603,0.25]
[1643457907304,0.25,96.666,96.603,0.25]
[1643457909208,0.25,96.666,96.602,1.35280161]
[1643457909408,6.0,96.657,96.602,1.35280161]
[1643457909810,0.25,96.656,96.602,1.35280161]
[1643457910111,6.0,96.657,96.602,1.35280161]
[1643457910309,0.25,96.656,96.603,0.25]
[1643457910711,0.25,96.656,96.602,1.35280161]
[1643457910913,25.2362,96.656,96.602,1.35280161]
[1643457911811,25.2362,96.656,96.603,0.25]
[1643457912814,24.9862,96.656,96.603,0.25]
[1643457913616,24.9862,96.656,96.602,1.35280161]
[1643457914420,0.25,96.655,96.603,0.25]
[1643457915417,0.25,96.655,96.602,1.35280161]
[1643457915716,6.0,96.646,96.602,1.35280161]
[1643457915921,6.0,96.646,96.603,0.25]
[1643457916120,0.25,96.645,96.603,0.25]
[1643457916317,0.25,96.645,96.602,1.35280161]
[1643457916517,24.9862,96.656,96.603,0.25]
[1643457916719,0.25,96.655,96.603,0.25]
[1643457919118,24.9862,96.656,96.603,0.25]
[1643457919921,24.9862,96.656,96.613,37.05980108]
[1643457920122,24.9862,96.656,96.614,105.05263359]
[1643457920420,24.9862,96.656,96.615,1.28100298]
[1643457920824,24.9862,96.656,96.616,0.25]
[1643457921027,24.9862,96.656,96.615,1.28100298]
[1643457922253,24.9862,96.656,96.616,0.25]
[1643457922651,24.9862,96.656,96.615,1.28100298]
[1643457922652,0.25,96.655,96.615,1.28100298]
[1643457922855,6.0,96.646,96.615,1.28100298]
[1643457923155,0.25,96.655,96.615,1.28100298]
[1643457924355,6.0,96.646,96.615,1.28100298]
[1643457924854,0.25,96.645,96.615,1.28100298]
[1643457925854,24.9862,96.656,96.615,1.28100298]
[1643457926054,0.25,96.655,96.616,0.25]
[1643457926858,24.9862,96.656,96.616,0.25]
[1643457927255,0.38761906,96.67,96.616,0.25]
[1643457927458,0.38761906,96.67,96.625,6.0]
[1643457927656,6.0,96.663,96.626,46.91355941]
[1643457927856,6.0,96.663,96.627,1.28084389]
[1643457928256,6.0,96.663,96.628,0.25]
[1643457928656,0.25,96.662,96.628,0.25]
[1643457929858,6.25,96.662,96.628,0.25]
[1643457936364,0.38761906,96.67,96.628,0.25]
[1643457937568,0.00523812,96.67,96.637,6.0]
[1643457937766,0.00523812,96.67,96.64,14.96]
[1643457937966,0.00523812,96.67,96.645,6.0]
[1643457938165,0.00523812,96.67,96.652,103.7]
[1643457938367,0.00523812,96.67,96.661,62.21]
[1643457938564,0.00523812,96.67,96.66,14.96]
[1643457938565,0.00523812,96.67,96.667,62.21]
[1643457938768,0.00523812,96.67,96.668,0.25]
[1643457939171,0.00523812,96.67,96.669,2.85779943]
[1643457939366,0.00523812,96.67,96.669,3.10779943]
[1643457940166,0.00523812,96.67,96.669,2.85779943]
[1643457940665,0.00523812,96.67,96.668,103.7]
[1643457941267,0.00523812,96.67,96.662,1.28038011]
[1643457942568,0.00523812,96.67,96.663,2.85779943]
[1643457942772,0.00523812,96.67,96.663,3.10779943]
[1643457943170,0.00523812,96.67,96.663,0.25]
[1643457958323,0.00523812,96.67,96.663,3.10779943]
[1643457960423,0.00523812,96.67,96.663,0.25]
[1643457960824,0.00523812,96.67,96.664,2.8259582]
[1643457961224,0.00523812,96.67,96.665,0.25]
[1643457962226,0.00523812,96.67,96.666,2.8259582]
[1643457962625,0.00523812,96.67,96.667,0.25]
[1643457963228,0.00523812,96.67,96.668,2.8259582]
[1643457963624,0.00523812,96.67,96.669,0.25]
[1643457964726,0.00523812,96.67,96.66,24.37650737]
[1643457964727,0.00523812,96.67,96.661,0.25]
[1643457964925,0.00523812,96.67,96.669,2.8259582]
[1643457965324,0.00523812,96.67,96.669,3.0759582]
[1643457966326,0.00523812,96.67,96.669,0.25]
[1643457966625,0.00523812,96.67,96.669,3.0759582]
[1643457967024,0.00523812,96.67,96.669,0.25]
[1643457968027,0.00523812,96.67,96.662,0.25]
[1643457968327,0.00523812,96.67,96.669,2.8259582]
[1643457968727,0.00523812,96.67,96.669,3.0759582]
[1643457970628,0.00523812,96.67,96.669,106.7759582]
[1643457971029,0.00523812,96.67,96.669,131.1849582]
[1643457974632,0.00523812,96.67,96.669,130.9349582]
[1643457975432,0.00523812,96.67,96.669,193.1449582]
[1643457975732,0.00523812,96.67,96.669,130.9349582]
[1643457975934,0.00523812,96.67,96.669,131.1849582]
[1643457976334,0.00523812,96.67,96.669,130.9349582]
[1643457976735,0.00014432,96.67,96.669,212.44528698]
[1643457976934,1.43605127,96.76,96.671,62.21]
[1643457977136,6.0,96.75,96.685,1.4313211]
[1643457977335,6.0,96.75,96.7,14.96]
[1643457977537,6.0,96.754,96.711,24.10223327]
[1643457977937,6.0,96.753,96.711,24.10223327]
[1643457978335,0.25,96.752,96.711,24.10223327]
[1643457978936,6.0,96.75,96.711,24.10223327]
[1643457979341,0.25,96.749,96.711,24.10223327]
[1643457980341,0.25,96.749,96.71,14.96]
[1643457981043,6.0,96.742,96.71,14.96]
[1643457981442,0.25,96.741,96.711,27.23238018]
[1643457983069,0.25,96.741,96.71,14.96]
[1643457983269,6.0,96.742,96.71,14.96]
[1643457984272,6.0,96.742,96.711,25.47701904]
[1643457984671,0.25,96.741,96.711,25.47701904]
[1643457987974,0.25,96.741,96.71,14.96]
[1643457988974,6.0,96.742,96.71,14.96]
[1643457991576,5.5,96.742,96.71,14.96]
[1643457992379,0.25,96.741,96.71,14.96]
[1643457993783,23.7267,96.752,96.711,0.25]
[1643457993982,23.7267,96.752,96.72,6.0]
[1643457994183,23.7267,96.752,96.721,5.96965788]
[1643457994383,23.7267,96.752,96.721,12.21965788]
[1643457994683,23.7267,96.752,96.73,6.0]
[1643457995082,23.7267,96.752,96.731,6.0]
[1643457996486,23.7267,96.752,96.721,5.96965788]
[1643457996687,0.25,96.751,96.721,5.96965788]
[1643457996889,23.7267,96.752,96.721,5.96965788]
[1643457997891,0.25,96.751,96.721,5.96965788]
[1643457998495,0.25,96.751,96.731,6.0]
[1643458001423,0.25,96.751,96.721,5.96965788]
[1643458002120,15.507,96.8,96.721,5.96965788]
[1643458002121,1.43605127,96.784,96.721,5.96965788]
[1643458002321,24.2242,96.779,96.721,5.96965788]
[1643458003125,42.85390399,96.778,96.721,5.96965788]
[1643458003322,0.25,96.777,96.721,5.96965788]
[1643458005529,0.25,96.777,96.731,6.0]
[1643458005928,0.25,96.778,96.73,14.96]
[1643458006330,24.2242,96.779,96.73,14.96]
[1643458006529,35.40579194,96.778,96.73,14.96]
[1643458008532,0.25,96.777,96.73,14.96]
[1643458009534,6.0,96.768,96.73,14.96]
[1643458009735,0.25,96.777,96.73,14.96]
[1643458009933,0.25,96.767,96.73,14.96]
[1643458010133,0.25,96.777,96.73,14.96]
[1643458010335,35.40579194,96.778,96.73,41.00951141]
[1643458010935,35.40579194,96.778,96.73,14.96]
[1643458011136,6.0,96.768,96.71,14.96]
[1643458011735,0.25,96.767,96.71,14.96]
[1643458011937,24.0421,96.767,96.71,14.96]
[1643458012136,6.0,96.757,96.71,14.96]
[1643458012339,63.18887146,96.756,96.71,14.96]
[1643458012537,6.0,96.746,96.699,20.30955392]
[1643458012737,63.18887146,96.756,96.699,20.30955392]
[1643458012938,0.25,96.745,96.699,20.30955392]
[1643458013138,63.18887146,96.756,96.699,20.30955392]
[1643458013339,6.0,96.746,96.699,20.30955392]
[1643458013738,25.0983,96.745,96.69,14.96]
[1643458013938,25.0983,96.745,96.67,14.96]
[1643458014141,6.0,96.735,96.67,14.96]
[1643458014438,24.1345,96.734,96.67,14.96]
[1643458014638,39.11383064,96.733,96.672,21.12281238]
[1643458014838,0.25,96.732,96.672,21.12281238]
[1643458015637,6.0,96.723,96.672,21.12281238]
[1643458015838,24.7099,96.722,96.672,21.12281238]
[1643458018241,6.0,96.712,96.657,1.4313211]
[1643458018442,24.2285,96.711,96.649,1.4313211]
[1643458018744,24.4785,96.711,96.644,2.71193968]
[1643458019043,6.0,96.701,96.645,1.28060533]
[1643458019268,24.2028,96.7,96.646,25.71836252]
[1643458019442,24.2028,96.7,96.646,25.96836252]
[1643458019842,0.25,96.7,96.647,2.83134269]
[1643458020242,6.0,96.73,96.648,0.25]
[1643458020243,0.25,96.729,96.648,0.25]
[1643458020443,0.25,96.729,96.647,2.83134269]
[1643458020646,0.25,96.729,96.646,25.71836252]
[1643458020647,64.89803867,96.729,96.65,1.4313211]
[1643458020844,64.89803867,96.729,96.649,2.83134269]
[1643458021043,6.0,96.719,96.649,2.83134269]
[1643458021246,24.9978,96.718,96.65,0.25]
[1643458021644,6.0,96.708,96.65,0.25]
[1643458021845,24.7478,96.749,96.659,6.0]
[1643458022046,24.7478,96.749,96.67,14.96]
[1643458022246,24.7478,96.749,96.671,0.25]
[1643458022647,34.37100988,96.748,96.671,2.39219074]
[1643458022845,6.0,96.739,96.672,27.59214269]
[1643458023045,34.37100988,96.748,96.672,27.59214269]
[1643458023247,34.37100988,96.748,96.673,0.25]
[1643458023851,6.0,96.738,96.674,2.83134269]
[1643458024252,0.25,96.737,96.675,0.25]
[1643458024655,24.9095,96.737,96.671,2.14219074]
[1643458024857,6.0,96.727,96.671,2.14219074]
[1643458025055,40.31657783,96.726,96.65,14.96]
[1643458025258,40.56657783,96.726,96.65,14.96]
[1643458025456,6.0,96.716,96.65,14.96]
[1643458025655,24.943,96.715,96.65,14.96]
[1643458025857,25.193,96.715,96.65,14.96]
[1643458026056,6.0,96.705,96.651,20.83932888]
[1643458026258,25.193,96.704,96.651,20.83932888]
[1643458026459,25.193,96.704,96.65,14.96]
[1643458027473,37.18246998,96.693,96.651,24.34308105]
[1643458027875,0.25,96.692,96.651,24.34308105]
[1643458028277,0.25,96.692,96.65,14.96]
[1643458028879,0.25,96.703,96.65,14.96]
[1643458029081,6.0,96.694,96.65,14.96]
[1643458029279,0.25,96.693,96.65,14.96]